Cogmind - Beta 16 @@@ ROGUE MODE // 2026.01.09 @ 16:30:04 Player: c4-BRK Result: Destroyed by YI-UF0 with YI-UF0's Doublenader Performance ------------- Evolutions (0) 0 Regions Visited (4) 800 Robots Destroyed (10) 50 Value Destroyed (241) 241 Prototype IDs (23) 460 Alien Tech Used (0) 0 Bonus (231) 231 TOTAL SCORE: 1782 Bonus ------- Aligned with FarCom 300 Friendly Fire -69 Cogmind --------- Core Integrity 0/250 Matter 290/300 Energy 84/100 System Corruption 0% Temperature Cool (0) Movement Core (200) Ox3 Location -9/Mines Parts ------- > --- POWER (1) -------- (None) > --- PROPULSION (2) --- (None) > --- UTILITY (2) ------ Heat Sink Medium Storage Unit > --- WEAPON (2) ------- Light Assault Rifle > --- INVENTORY (10) --- Lightpack 2.0 Compact Matter Pod (116) Rocket Launcher Peak State ------------ > --- POWER ------------ Ion Engine > --- PROPULSION ------- Wheel Compact Wheel > --- UTILITY ---------- Heat Sink Medium Storage Unit > --- WEAPON ----------- Light Assault Rifle Light Cannon > --- INVENTORY -------- Lightpack 2.0 Compact Matter Pod Light Assault Rifle Rocket Launcher [Rating: 10] Favorites ----------- Power Ion Engine Engine Ion Engine Propulsion Wheel Wheel Wheel Utility Heat Sink Device Heat Sink Storage Medium Storage Unit Weapon Light Assault Rifle Ballistic Gun Light Assault Rifle Ballistic Cannon Light Cannon Build | -11 -10 -10 -10 -9 ------- Run | Yrd Mat Min Exi Min Slots Evolved . | . . . . . Power . | . . . . . Propulsion . | . . . . . Utility . | . . . . . Weapon . | . . . . . Parts Attached 9 | 6 3 . . . Power 1 | 1 . . . . Engine 1 | 1 . . . . Core . | . . . . . Reactor . | . . . . . Propulsion 2 | 2 . . . . Treads . | . . . . . Leg . | . . . . . Wheel 2 | 2 . . . . Hover . | . . . . . Flight . | . . . . . Utility 3 | 1 2 . . . Device 1 | . 1 . . . Storage 2 | 1 1 . . . Processor . | . . . . . Hackware . | . . . . . Protection . | . . . . . Artifact . | . . . . . Weapon 3 | 2 1 . . . Energy Gun . | . . . . . Energy Cannon . | . . . . . Ballistic Gun 2 | 2 . . . . Ballistic Cannon 1 | . 1 . . . Launcher . | . . . . . Special Weapon . | . . . . . Impact Weapon . | . . . . . Slashing Weapon . | . . . . . Piercing Weapon . | . . . . . Special Melee Weapon . | . . . . . Unidentified Prototypes . | . . . . . Parts Lost 5 | . . . . 5 Power 1 | . . . . 1 Propulsion 2 | . . . . 2 Utility . | . . . . . Weapon 2 | . . . . 2 Highest Loss Streak 5 | . . . . 5 To Critical Strikes . | . . . . . Average Backups 1 | . . 2 3 4 Power . | . . . . . Propulsion . | . . . . . Utility . | . . . 1 2 Weapon 1 | . . 1 2 2 Tool/Special . | . . . . . Unused Backups 3 | . . . . 3 Power . | . . . . . Propulsion . | . . . . . Utility 2 | . . . . 2 Weapon 1 | . . . . 1 Tool/Special . | . . . . . Average Slot Usage (%) 98 | . 98 100 100 92 Engine 13 | . 14 14 14 12 Wheel 27 | . 28 28 28 24 Device 13 | . 12 14 14 14 Storage 14 | . 14 14 14 14 Ballistic Gun 16 | . 21 14 14 14 Ballistic Cannon 10 | . 6 14 14 12 Peak Build Rating 10 | 6 7 7 10 10 Average Rating 7 | 3 6 7 8 9 On Entrance 6 | . 6 7 7 10 Avg Prop Armor Cover (%) . | . . . . . Naked Turns . | . . . . . Heaviest Build 20 | 12 20 20 20 20 Greatest Support 26 | 26 26 26 26 26 Greatest Overweight (x) . | . . . . . Average Overweight (x) . | . . . . . Largest Inventory Capacity 10 | 8 10 10 10 10 Average Capacity 9 | 7 8 10 10 10 Most Carried 6 | 4 2 3 6 6 Average Carried 2 | . . 2 4 5 Final Capacity 10 | 8 10 10 10 10 Final Carried 6 | . 1 3 6 5 Class Distribution -------------------- 100% | Mutant Dominant Class ---------------- Mutant | -10/Materials Mutant | -10/Mines Mutant | -10/Exiles Mutant | -9/Mines Resources | -11 -10 -10 -10 -9 ----------- Run | Yrd Mat Min Exi Min Matter Collected 372 | 216 117 39 . . Remotely . | . . . . . Salvage Created 315 | . 315 . . . Parts 26 | . 26 . . . Haulers Intercepted . | . . . . . Recyclers Shooed . | . . . . . Parts Field Recycled . | . . . . . Retrieved Matter . | . . . . . Parts Self-Destructed . | . . . . . Prevented . | . . . . . Parts Restored . | . . . . . Kills | -11 -10 -10 -10 -9 ------- Run | Yrd Mat Min Exi Min Combat Hostiles Destroyed 9 | . 9 . . . Guns 4 | . 4 . . . Cannons 5 | . 5 . . . Classes Destroyed 3 | . 3 . . . Tunneler 1 | . 1 . . . Swarmer 3 | . 3 . . . Grunt 6 | . 6 . . . Best Kill Streak 7 | . 7 . . . Combat Bots Only 7 | . 7 . . . Max Kills in Single Turn 1 | . 1 . . . Gunslinging . | . . . . . Exploded . | . . . . . Melee . | . . . . . Uniques/NPCs Destroyed . | . . . . . Combat | -11 -10 -10 -10 -9 -------- Run | Yrd Mat Min Exi Min Hostile Shots Fired 50 | . 29 1 . 20 Missed 17 | . 10 . . 7 Hits 33 | . 19 1 . 13 Projectile 33 | . 19 1 . 13 AOE 14 | . . . . 14 Damage Taken 696 | . 199 17 . 480 Core 253 | . 73 . . 180 Absorbed by Shields . | . . . . . Core Remaining (%) 100 | 100 . . . . Volleys Fired 31 | . 23 . . 8 Largest 2 | . 2 . . 2 Hottest 50 | . 50 . . 50 Shots Fired 57 | . 46 . . 11 Gun 42 | . 34 . . 8 Cannon 15 | . 12 . . 3 Launcher . | . . . . . Special . | . . . . . Kinetic 57 | . 46 . . 11 Thermal . | . . . . . Explosive . | . . . . . Electromagnetic . | . . . . . Robot Hit Streak 8 | . 8 . . 4 Robot Miss Streak 5 | . 5 . . 2 Penetration Max . | . . . . . Secondary Targets 1 | . 1 . . . Max Gunslinging Chain 1 | . 1 . . . Shots Hit Robots 34 | . 27 . . 7 Core Hits 19 | . 16 . . 3 Critical Kills . | . . . . . Critical Parts Destroyed . | . . . . . Critical Strikes . | . . . . . Melee Attacks . | . . . . . Impact . | . . . . . Slashing . | . . . . . Piercing . | . . . . . Sneak Attacks . | . . . . . Combat Hostiles . | . . . . . Follow-up Attacks . | . . . . . Damage Inflicted 467 | . 398 . . 69 Guns 224 | . 191 . . 33 Cannons 243 | . 207 . . 36 Explosions . | . . . . . Melee . | . . . . . Ramming . | . . . . . Kinetic 467 | . 398 . . 69 Thermal . | . . . . . Explosive . | . . . . . Electromagnetic . | . . . . . Impact . | . . . . . Slashing . | . . . . . Piercing . | . . . . . Highest Corruption . | . . . . . Average Corruption . | . . . . . Corruption Purged . | . . . . . Corruption Blocked . | . . . . . Overload Shots . | . . . . . Overflow Damage . | . . . . . Projectiles . | . . . . . Explosions . | . . . . . Melee . | . . . . . Knockbacks 1 | . . . . 1 Impact . | . . . . . Kinetic 1 | . . . . 1 Secondary . | . . . . . Self-Inflicted Damage . | . . . . . Shots . | . . . . . Rammed . | . . . . . Targets Rammed . | . . . . . Kicked . | . . . . . Crushed . | . . . . . Highest Temperature 1 | . 1 . . . Average Temperature 1 | . 1 . . . Received Heat Transfer 93 | . 84 9 . . Siege Activations . | . . . . . Martial Activations . | . . . . . Shielding Activations . | . . . . . Robots Disrupted . | . . . . . Combat Hostiles . | . . . . . Robots Corrupted . | . . . . . Combat Hostiles . | . . . . . Parts Fried . | . . . . . Impact Corruptions . | . . . . . Robots Melted . | . . . . . Combat Hostiles . | . . . . . Parts Melted . | . . . . . Heat Transferred . | . . . . . Parts Sabotaged . | . . . . . Parts Stolen . | . . . . . Parts Stripped . | . . . . . Power Chain Reactions . | . . . . . Alert | -11 -10 -10 -10 -9 ------- Run | Yrd Mat Min Exi Min Maximum Alert Level . | . . . . . Low Security (%) 100 | 100 100 100 . 100 Level 1 . | . . . . . Level 2 . | . . . . . Level 3 . | . . . . . Level 4 . | . . . . . Level 5 . | . . . . . High Security . | . . . . . Max Security . | . . . . . Peak Influence 150 | . 150 48 . . Initial 48 | . . 48 . . Average 26 | . 37 30 . . Influence Increases 252 | . 222 30 . . Destroy 0b10 Robot/C 180 | . 180 . . . Destroy 0b10 Robot/NC 5 | . 5 . . . Destroy Leader 30 | . 30 . . . Successful Hack 7 | . 7 . . . Lose Combat Pursuer 30 | . . 30 . . Influence Decreases 252 | . 97 137 18 . Entered New Map 95 | . . 77 18 . Time Decay 157 | . 97 60 . . Squads Dispatched 2 | . 2 . . . Investigation . | . . . . . Extermination . | . . . . . Reinforcement 2 | . 2 . . . Assault . | . . . . . Garrison . | . . . . . Intercept . | . . . . . Searches Triggered . | . . . . . Construction Impeded . | . . . . . Haulers Reinforced . | . . . . . Active Scanning Responses . | . . . . . Cargo Convoy Interrupts . | . . . . . Stealth | -11 -10 -10 -10 -9 --------- Run | Yrd Mat Min Exi Min Distress Signals 1 | . 1 . . . Communications Jammed . | . . . . . Distress Signals . | . . . . . Times Spotted 19 | . 16 2 . 1 Peak Tracking Total 4 | . 4 2 . 1 Tactical Retreats 1 | . . 1 . . Traps | -11 -10 -10 -10 -9 ------- Run | Yrd Mat Min Exi Min Traps Triggered . | . . . . . Indirectly . | . . . . . Trap Hack Attempts . | . . . . . Triggered . | . . . . . Disarmed . | . . . . . Reprogrammed . | . . . . . Reused . | . . . . . Traps Extracted . | . . . . . Installed . | . . . . . Triggered . | . . . . . Machines | -11 -10 -10 -10 -9 ---------- Run | Yrd Mat Min Exi Min Machines Disabled . | . . . . . Max in Single Turn . | . . . . . Machines Repaired . | . . . . . Machines Dismantled . | . . . . . Machines Sabotaged . | . . . . . Overloaded Fab Kills . | . . . . . Hacking | -11 -10 -10 -10 -9 --------- Run | Yrd Mat Min Exi Min Machines Accessed 5 | . 2 . 3 . Terminals 2 | . 2 . . . Fabricators . | . . . . . Repair Stations . | . . . . . Recycling Units . | . . . . . Scanalyzers . | . . . . . Garrison Access . | . . . . . Total Hacks 10 | . 6 . 4 . Successful 5 | . 1 . 4 . Failed 5 | . 5 . . . Catastrophic 1 | . 1 . . . Database Lockouts . | . . . . . Manual 1 | . . . 1 . Terminals 6 | . 6 . . . Fabricators . | . . . . . Repair Stations . | . . . . . Recycling Units . | . . . . . Scanalyzers . | . . . . . Garrison Access . | . . . . . Terminal Hacks 5 | . 1 . 4 . Record 3 | . . . 3 . Registered Components 1 | . 1 . . . Proto ID Catalog 1 | . . . 1 . Fabricator Hacks . | . . . . . Repair Station Hacks . | . . . . . Recycling Unit Hacks . | . . . . . Scanalyzer . | . . . . . Garrison Access Hacks . | . . . . . Unauthorized Hacks . | . . . . . Terminals . | . . . . . Fabricators . | . . . . . Repair Stations . | . . . . . Recycling Units . | . . . . . Scanalyzers . | . . . . . Garrison Access . | . . . . . Data Cores Recovered . | . . . . . Used . | . . . . . Hacking Detections 2 | . 2 . . . Full Trace Events 2 | . 2 . . . Feedback Events . | . . . . . Feedback Blocked . | . . . . . Robot Schematics Acquired . | . . . . . Robots Built . | . . . . . Authchips . | . . . . . Time . | . . . . . Total Robot Build Rating . | . . . . . Part Schematics Acquired . | . . . . . Parts Built . | . . . . . Authchips . | . . . . . Time . | . . . . . Total Part Build Rating . | . . . . . Part Studies Acquired . | . . . . . Parts Repaired . | . . . . . Time . | . . . . . Parts Recycled . | . . . . . Recycled Matter . | . . . . . Retrieved Matter . | . . . . . Retrieved Components . | . . . . . Parts Scanalyzed . | . . . . . Part Schematics Acquired . | . . . . . Parts Damaged . | . . . . . Bothacking | -11 -10 -10 -10 -9 ------------ Run | Yrd Mat Min Exi Min Used RIF Installer . | . . . . . Robots Hacked . | . . . . . Non-combat . | . . . . . Combat . | . . . . . Robot Hacks Applied . | . . . . . Relay Couplers Released . | . . . . . Fabnet Peak Effective % . | . . . . . Robots Rewired . | . . . . . Allies Hacked . | . . . . . Hacks Repelled . | . . . . . Allies | -11 -10 -10 -10 -9 -------- Run | Yrd Mat Min Exi Min Total Allies . | . . . . . Largest Group . | . . . . . Highest-Rated Group . | . . . . . Highest-Rated Ally . | . . . . . Total Orders . | . . . . . Ally Attacks . | . . . . . Total Damage . | . . . . . Kills . | . . . . . Allies Corrupted . | . . . . . Allies Melted . | . . . . . Intel | -11 -10 -10 -10 -9 ------- Run | Yrd Mat Min Exi Min Active Infowar (turns) . | . . . . . Robot Analysis Total . | . . . . . Derelict Logs Recovered . | . . . . . Drone Launches . | . . . . . Drone Recoveries . | . . . . . Exploration | -11 -10 -10 -10 -9 ------------- Run | Yrd Mat Min Exi Min Turns Passed 818 | 58 306 131 243 80 Spaces Moved 734 | 59 262 132 269 12 Core 17 | 17 . . . . Treads . | . . . . . Legs . | . . . . . Wheels 717 | 42 262 132 269 12 Hover . | . . . . . Flight . | . . . . . Fastest Speed 50 | 50 90 90 90 90 Average Speed 89 | 78 90 90 90 90 Slowest Speed 90 | 90 90 90 90 90 Overloaded Moves . | . . . . . Propulsion Burnouts . | . . . . . Robots Hopped . | . . . . . Potential Cave-ins . | . . . . . Cave-ins Triggered . | . . . . . Exploration Rate (%) 32 | 4 45 41 61 13 Regions Visited 4 Branch Regions 3 Pre-discovered Areas . | . . . . . Known Exits Taken . | . . . . . Unknown Exits Taken 4 | 1 1 1 1 . Scrap Searched . | . . . . . Spaces Dug . | . . . . . Terrain Destroyed 1 | . . . . 1 Melee . | . . . . . Projectile 1 | . . . . 1 AOE . | . . . . . Terrain Rammed . | . . . . . Walls Destroyed . | . . . . . Machines Disabled . | . . . . . Actions | -11 -10 -10 -10 -9 --------- Run | Yrd Mat Min Exi Min Total 846 | 70 292 144 269 71 Wait 62 | . 1 11 . 50 Move 730 | 58 261 131 268 12 Hop . | . . . . . Pick Up 12 | 6 3 2 1 . Fast Attach . | . . . . . Attach 8 | 6 1 . . 1 Detach . | . . . . . Swap 2 | . 2 . . . Drop 1 | . 1 . . . Fire 31 | . 23 . . 8 Melee . | . . . . . Ram . | . . . . . Kick . | . . . . . Crush . | . . . . . Escape Stasis . | . . . . . Rewire . | . . . . . Trap . | . . . . . Miscellaneous . | . . . . . Route ------- -11/Scrapyard -10/Materials (discovered 2 exits: [*Mat] / [*Min]) -10/Mines (discovered 2 exits: [*Mat] / *Exi) -10/Exiles -9/Mines History --------- Turn | Location | Event 4 | -11/Scrapyard | Discovered new exit (range 14) 59 | -11/Scrapyard | Entered Materials 302 | -10/Materials | Build established: Mutant 338 | -10/Materials | Destroyed 7 combat bots 353 | -10/Materials | Discovered new exit (range 11) 354 | -10/Materials | Discovered new exit (range 13) 365 | -10/Materials | Entered Mines 384 | -10/Mines | Found a hidden stash of uninstalled traps 458 | -10/Mines | Discovered new exit (range 12) 476 | -10/Mines | Received a Rocket Launcher from a helpful Derelict 493 | -10/Mines | Deemed a non-threat by the Exiles lab entrance 493 | -10/Mines | Discovered new exit (range 5) 496 | -10/Mines | Entered Exiles 518 | -10/Exiles | Met 8R-AWN 534 | -10/Exiles | Met EX-HEX 561 | -10/Exiles | Met EX-BIN 587 | -10/Exiles | Aligned with FarCom system 588 | -10/Exiles | Given EX-Vault access code 609 | -10/Exiles | Opened EX-Vault 638 | -10/Exiles | Found Lightpack 2.0 657 | -10/Exiles | Warned to stay clear of 0b10 Research branches 681 | -10/Exiles | Met EX-DEC 729 | -10/Exiles | Discovered new exit (range 10) 739 | -10/Exiles | Left Exiles lab with Lightpack 2.0 739 | -10/Exiles | Entered Mines 756 | -9/Mines | YI-UF0 nonchalantly dropped a Grenade Launcher on the ground 812 | -9/Mines | Core integrity fell below 50% 814 | -9/Mines | Core integrity fell below 20% 819 | -9/Mines | Destroyed by YI-UF0 with YI-UF0's Doublenader Last Messages --------------- T-07 Excavator is excavating. K-01 Serf collects debris. YI-UF0 knocked back. YI-UF0: "BOOM TO YOU TOO!" YI-UF0 mumbles something. Ion Engine destroyed. Com. Wheel destroyed. YI-UF0 mumbles something. The unstable cave ceiling collapses. Wheel destroyed. Lgt. Cannon destroyed. The unstable cave ceiling collapses. U-05 Engineer builds a Wall. T-07 Excavator is excavating. U-05 Engineer lays Concrete. The unstable cave ceiling collapses. U-05 Engineer lays Concrete. Lgt. Assault Rifle destroyed. U-05 Engineer builds a Wall. T-07 Excavator is excavating. Map ----- +----------------------------------------------------+ | ??????????????????????????????????????? | | ??????????????????????????????????????? | | ??????????????????????????????????????? | | ??????????????????????????????????????? | | ??????????????????????????????????????? | | ??????????????????????????????????????? | | ??????????????????????????????????????? | | ??????????????????????????????????????? | | ??????????????????????????????????????? | | ??????????????????????????????????????? | | ????????????????????????? ????????????? | | ????????????????????????? ????????????? | | ????????????????????????? ????????????? | | ????????????????????????? ??????? #???? | | ????????????????????????? ??????? ##?? | | ????????????????????????? ?????? #?? | | ????????????????????????? #???? #?? | | ??????????????????????### #???# #?? | | ??????????????????????# # #### #??? | | ??????????????????????? #???? | | ??????????????????????? g #???? | | ?????????????????????### ##??? | | ????????????????????## ???? | | ????????????????????# ??????? | | ????????????????????# # #??? | | ????????????????????# @ #??? | | ????????????????????# #?? | | ??????????????## ##### #?? | | ?????????????## ##?? | | ?????????????# #####??? | | ?????????????# #??????? | | ?????????????# ] u?????? | | ?????????????# r## ????? | | ?????????????# ??## t ???? | | ?????????????# ???? #??? | | ????????????# ????? ####### ##??? | | ??????????? ?????## #??????##???? | | ???????????? ??????# ##????????????? | | ??????????????????# #??????????????? | | ??????????????????# ???????????????? | | ??????????????????# ???????????????? | | ??????????????????## #???????????????? | | ???????????????????###????????????????? | | ??????????????????????????????????????? | | | | | | | | | | | | | +----------------------------------------------------+ Best States ------------- Heat Dissipation 35 Energy Generation 10 Energy Capacity 250 Matter Stores 300 Matter Capacity 300 Sight Range 16 Terrain Scan Density 10 Evasion (%) 50 Item Schematics ----------------- None Robot Schematics ------------------ None Fabricated ------------ Nothing Repaired ---------- Nothing Studied --------- None Alien Tech Used ----------------- None Achievements -------------- None Challenges ------------ None Game ------ Seed StormDrainedPlating Manual? 0 Play Time 00:08:53 Cumulative 32.0 hours Start 2026.01.09 @ 16:21:23 End 2026.01.09 @ 16:30:04 Sessions 1 Manual Loads 0 Difficulty Rogue Special Mode None Game No. 62 Rogue 41 Adventurer 21 Explorer 0 Win Type - Total 1 Types 0/0/0/0/0/0/0/1/0/0 Lore% 56 Gallery% 34 Achievement% 25 Wizard Run 0 Options --------- Layout 1 ASCII 0 Keyboard 0 Movement Mouse Keybinds 0 Fullscreen 2 Font 24/Smallcaps Map View 50x35 Zoom Use 0% Tactical HUD 0 Map Filters NONE Filters NONE Steam 1 RUN: aff7a4fe-dd0b-4566-bd15-52a00c50243f